[Event "Titled Tuesday Blitz May 24 Late 2022"]
[White "Riehle, Marco"]
[Black "Kruckenhauser, Arthur"]
[WhiteFideId "12904392"]
[BlackFideId "1642812"]
[WhiteElo "2462"]
[BlackElo "2243"]
[Result "1-0"]
[Round "09"]
[TimeControl "180+1"]
[Date "2022.05.24"]
[WhiteClock "0:01:23"]
[BlackClock "0:00:15"]

1. e4 {[%clk 0:03:00]}  e5 {[%clk 0:02:53]} 2. Nf3 {[%clk 0:03:00]}  Nc6 {[%clk 0:02:51]} 3. Bc4 {[%clk 0:03:01]}  Nf6 {[%clk 0:02:51]} 4. d4 {[%clk 0:03:00]}  exd4 {[%clk 0:02:49]} 5. O-O {[%clk 0:03:01]}  Nxe4 {[%clk 0:02:48]} 6. Nc3 {[%clk 0:03:00]}  Nxc3 {[%clk 0:02:42]} 7. bxc3 {[%clk 0:03:00]}  d5 {[%clk 0:02:43]} 8. Bd3 {[%clk 0:02:59]}  Be7 {[%clk 0:02:38]} 9. Re1 {[%clk 0:02:59]}  O-O {[%clk 0:02:38]} 10. cxd4 {[%clk 0:02:59]}  Bg4 {[%clk 0:02:37]} 11. Bf4 {[%clk 0:02:58]}  Bf6 {[%clk 0:02:33]} 12. c3 {[%clk 0:02:57]}  Na5 {[%clk 0:02:27]} 13. h3 {[%clk 0:02:55]}  Bh5 {[%clk 0:02:26]} 14. Re3 {[%clk 0:02:53]}  Nc4 {[%clk 0:02:23]} 15. Bxc4 {[%clk 0:02:52]}  dxc4 {[%clk 0:02:24]} 16. Qa4 {[%clk 0:02:51]}  Qd5 {[%clk 0:02:03]} 17. Bxc7 {[%clk 0:02:49]}  b5 {[%clk 0:02:03]} 18. Qa6 {[%clk 0:02:46]}  Rfe8 {[%clk 0:02:02]} 19. Rae1 {[%clk 0:02:39]}  Rxe3 {[%clk 0:02:00]} 20. Rxe3 {[%clk 0:02:40]}  h6 {[%clk 0:01:59]} 21. Be5 {[%clk 0:02:36]}  Bxf3 {[%clk 0:01:53]} 22. Bxf6 {[%clk 0:02:32]}  Be4 {[%clk 0:01:49]} 23. Rg3 {[%clk 0:02:27]}  Bg6 {[%clk 0:01:49]} 24. Be5 {[%clk 0:02:25]}  Kh7 {[%clk 0:01:35]} 25. Kh2 {[%clk 0:02:20]}  f6 {[%clk 0:01:30]} 26. Bf4 {[%clk 0:02:15]}  b4 {[%clk 0:01:30]} 27. cxb4 {[%clk 0:02:12]}  Qxd4 {[%clk 0:01:30]} 28. Be3 {[%clk 0:02:06]}  Qd5 {[%clk 0:01:31]} 29. Bf4 {[%clk 0:02:00]}  Bd3 {[%clk 0:01:22]} 30. a4 {[%clk 0:01:46]}  Qd4 {[%clk 0:01:12]} 31. Qb7 {[%clk 0:01:41]}  Rg8 {[%clk 0:01:11]} 32. Be3 {[%clk 0:01:41]}  Qe5 {[%clk 0:01:09]} 33. Qd7 {[%clk 0:01:34]}  f5 {[%clk 0:01:04]} 34. Bd4 {[%clk 0:01:33]}  Qf4 {[%clk 0:00:53]} 35. Bxa7 {[%clk 0:01:32]}  h5 {[%clk 0:00:46]} 36. Be3 {[%clk 0:01:31]}  Qb8 {[%clk 0:00:35]} 37. Kg1 {[%clk 0:01:27]}  Qxb4 {[%clk 0:00:32]} 38. Rg5 {[%clk 0:01:27]}  Qe1+ {[%clk 0:00:26]} 39. Kh2 {[%clk 0:01:27]}  Qe2 {[%clk 0:00:25]} 40. Bd4 {[%clk 0:01:27]}  Kh6 {[%clk 0:00:20]} 41. Rxg7 {[%clk 0:01:27]}  Qe8 {[%clk 0:00:15]} 42. Qd6+ {[%clk 0:01:23]} 1-0


[Site "https://www.chess.com"]

[Event "Titled Tuesday Blitz May 24 Late 2022"]
[White "Roman, Rodrigo"]
[Black "Lehtosaari, Mauri"]
[WhiteFideId "3701220"]
[BlackFideId "501999"]
[WhiteElo "2001"]
[BlackElo "2471"]
[Result "1-0"]
[Round "09"]
[TimeControl "180+1"]
[Date "2022.05.25"]
[WhiteClock "0:00:19"]
[BlackClock "0:00:14"]

1. Nf3 {[%clk 0:03:00]}  d5 {[%clk 0:02:54]} 2. b3 {[%clk 0:03:00]}  Nf6 {[%clk 0:02:54]} 3. Bb2 {[%clk 0:03:01]}  c6 {[%clk 0:02:55]} 4. e3 {[%clk 0:03:02]}  Bg4 {[%clk 0:02:55]} 5. Be2 {[%clk 0:03:02]}  Nbd7 {[%clk 0:02:55]} 6. h3 {[%clk 0:03:02]}  Bxf3 {[%clk 0:02:53]} 7. Bxf3 {[%clk 0:03:03]}  e5 {[%clk 0:02:52]} 8. O-O {[%clk 0:03:03]}  e4 {[%clk 0:02:53]} 9. Be2 {[%clk 0:03:04]}  Bd6 {[%clk 0:02:53]} 10. c4 {[%clk 0:03:02]}  O-O {[%clk 0:02:47]} 11. d3 {[%clk 0:03:02]}  Qe7 {[%clk 0:02:42]} 12. dxe4 {[%clk 0:03:01]}  dxe4 {[%clk 0:02:41]} 13. Qc2 {[%clk 0:02:58]}  Rad8 {[%clk 0:02:38]} 14. Rd1 {[%clk 0:02:56]}  Rfe8 {[%clk 0:02:35]} 15. Nd2 {[%clk 0:02:52]}  Bb8 {[%clk 0:02:32]} 16. Nf1 {[%clk 0:02:51]}  Ne5 {[%clk 0:02:28]} 17. Ng3 {[%clk 0:02:48]}  Ng6 {[%clk 0:02:16]} 18. Nf5 {[%clk 0:02:44]}  Qe6 {[%clk 0:02:12]} 19. Bg4 {[%clk 0:02:39]}  Nxg4 {[%clk 0:02:06]} 20. hxg4 {[%clk 0:02:37]}  Be5 {[%clk 0:01:58]} 21. Rxd8 {[%clk 0:02:27]}  Rxd8 {[%clk 0:01:54]} 22. Rd1 {[%clk 0:02:28]}  Rxd1+ {[%clk 0:01:48]} 23. Qxd1 {[%clk 0:02:28]}  h6 {[%clk 0:01:29]} 24. Bd4 {[%clk 0:02:24]}  a6 {[%clk 0:01:24]} 25. f3 {[%clk 0:02:10]}  exf3 {[%clk 0:01:21]} 26. gxf3 {[%clk 0:02:10]}  Kh7 {[%clk 0:00:58]} 27. a4 {[%clk 0:02:09]}  Ne7 {[%clk 0:00:52]} 28. Nxe7 {[%clk 0:01:38]}  Qxe7 {[%clk 0:00:52]} 29. Qd3+ {[%clk 0:01:39]}  Kg8 {[%clk 0:00:47]} 30. Qe4 {[%clk 0:01:32]}  Bd6 {[%clk 0:00:42]} 31. Qxe7 {[%clk 0:01:25]}  Bxe7 {[%clk 0:00:43]} 32. f4 {[%clk 0:01:15]}  g6 {[%clk 0:00:34]} 33. Kg2 {[%clk 0:01:14]}  f5 {[%clk 0:00:34]} 34. Kf3 {[%clk 0:01:15]}  Kf7 {[%clk 0:00:33]} 35. e4 {[%clk 0:01:15]}  fxe4+ {[%clk 0:00:29]} 36. Kxe4 {[%clk 0:01:15]}  h5 {[%clk 0:00:28]} 37. g5 {[%clk 0:01:12]}  Ke6 {[%clk 0:00:28]} 38. Bf2 {[%clk 0:01:10]}  Bd6 {[%clk 0:00:27]} 39. Bh4 {[%clk 0:01:07]}  Bc7 {[%clk 0:00:24]} 40. Bf2 {[%clk 0:01:07]}  Ba5 {[%clk 0:00:24]} 41. Bh4 {[%clk 0:01:00]}  Bb6 {[%clk 0:00:24]} 42. Bg3 {[%clk 0:01:00]}  Bg1 {[%clk 0:00:24]} 43. Bh4 {[%clk 0:01:00]}  Bc5 {[%clk 0:00:18]} 44. Be1 {[%clk 0:00:58]}  Bd6 {[%clk 0:00:17]} 45. b4 {[%clk 0:00:57]}  Be7 {[%clk 0:00:16]} 46. c5 {[%clk 0:00:54]}  Bd8 {[%clk 0:00:16]} 47. Bc3 {[%clk 0:00:53]}  Bc7 {[%clk 0:00:14]} 48. Bd4 {[%clk 0:00:48]}  h4 {[%clk 0:00:13]} 49. Bf2 {[%clk 0:00:45]}  h3 {[%clk 0:00:13]} 50. Bg1 {[%clk 0:00:42]}  Bb8 {[%clk 0:00:13]} 51. Bh2 {[%clk 0:00:41]}  Bc7 {[%clk 0:00:13]} 52. Bg3 {[%clk 0:00:41]}  Bb8 {[%clk 0:00:13]} 53. Bh2 {[%clk 0:00:32]}  Bc7 {[%clk 0:00:14]} 54. Bg1 {[%clk 0:00:32]}  a5 {[%clk 0:00:13]} 55. b5 {[%clk 0:00:22]}  Bb8 {[%clk 0:00:10]} 56. b6 {[%clk 0:00:21]}  Kf7 {[%clk 0:00:08]} 57. Kf3 {[%clk 0:00:17]}  Ke6 {[%clk 0:00:08]} 58. Ke4 {[%clk 0:00:17]}  Kf7 {[%clk 0:00:08]} 59. Bh2 {[%clk 0:00:17]}  Ke6 {[%clk 0:00:09]} 60. Bg3 {[%clk 0:00:18]}  Kf7 {[%clk 0:00:08]} 61. Kf3 {[%clk 0:00:17]}  Ke6 {[%clk 0:00:08]} 62. f5+ {[%clk 0:00:18]}  Kxf5 {[%clk 0:00:07]} 63. Bxb8 {[%clk 0:00:19]}  Kxg5 {[%clk 0:00:08]} 64. Kg3 {[%clk 0:00:19]}  Kf5 {[%clk 0:00:09]} 65. Kxh3 {[%clk 0:00:19]}  Ke4 {[%clk 0:00:09]} 66. Kg4 {[%clk 0:00:17]}  Kd5 {[%clk 0:00:10]} 67. Bd6 {[%clk 0:00:17]}  Kc4 {[%clk 0:00:11]} 68. Kg5 {[%clk 0:00:18]}  Kb4 {[%clk 0:00:11]} 69. Kxg6 {[%clk 0:00:18]}  Kxa4 {[%clk 0:00:12]} 70. Kf6 {[%clk 0:00:19]}  Kb5 {[%clk 0:00:10]} 71. Ke6 {[%clk 0:00:18]}  a4 {[%clk 0:00:11]} 72. Kd7 {[%clk 0:00:19]}  a3 {[%clk 0:00:11]} 73. Kc7 {[%clk 0:00:19]}  a2 {[%clk 0:00:11]} 74. Be5 {[%clk 0:00:20]}  Kxc5 {[%clk 0:00:12]} 75. Kxb7 {[%clk 0:00:20]}  Kb4 {[%clk 0:00:13]} 76. Kxc6 {[%clk 0:00:19]}  Kb3 {[%clk 0:00:12]} 77. b7 {[%clk 0:00:20]}  Kc2 {[%clk 0:00:13]} 78. b8=Q {[%clk 0:00:19]}  a1=Q {[%clk 0:00:14]} 79. Bxa1 {[%clk 0:00:19]} 1-0


[Site "https://www.chess.com"]

[Event "Titled Tuesday Blitz May 24 Late 2022"]
[White "Romanchuk, Viktor"]
[Black "Sapunov, Evgeny"]
[WhiteFideId "14109271"]
[BlackFideId "4126661"]
[WhiteElo "2242"]
[BlackElo "2470"]
[Result "1-0"]
[Round "09"]
[TimeControl "180+1"]
[Date "2022.05.24"]
[WhiteClock "0:00:18"]
[BlackClock "0:00:09"]

1. d4 {[%clk 0:03:00]}  Nf6 {[%clk 0:02:57]} 2. c4 {[%clk 0:02:57]}  g6 {[%clk 0:02:57]} 3. Nf3 {[%clk 0:02:55]}  Bg7 {[%clk 0:02:58]} 4. g3 {[%clk 0:02:56]}  O-O {[%clk 0:02:58]} 5. Bg2 {[%clk 0:02:56]}  d6 {[%clk 0:02:58]} 6. O-O {[%clk 0:02:56]}  Nbd7 {[%clk 0:02:59]} 7. Nc3 {[%clk 0:02:56]}  e5 {[%clk 0:02:59]} 8. e4 {[%clk 0:02:57]}  exd4 {[%clk 0:02:59]} 9. Nxd4 {[%clk 0:02:58]}  Re8 {[%clk 0:02:59]} 10. h3 {[%clk 0:02:57]}  a6 {[%clk 0:02:59]} 11. Be3 {[%clk 0:02:54]}  Rb8 {[%clk 0:03:00]} 12. b3 {[%clk 0:02:51]}  Ne5 {[%clk 0:02:56]} 13. f4 {[%clk 0:02:48]}  Ned7 {[%clk 0:02:54]} 14. Bf2 {[%clk 0:02:46]}  c5 {[%clk 0:02:46]} 15. Nde2 {[%clk 0:02:45]}  Qc7 {[%clk 0:02:45]} 16. a4 {[%clk 0:02:36]}  b6 {[%clk 0:02:45]} 17. Qc2 {[%clk 0:02:26]}  Bb7 {[%clk 0:02:38]} 18. Rad1 {[%clk 0:02:25]}  Rbd8 {[%clk 0:02:37]} 19. Rd2 {[%clk 0:02:15]}  Nb8 {[%clk 0:02:37]} 20. Rfd1 {[%clk 0:02:13]}  Nc6 {[%clk 0:02:38]} 21. Nd5 {[%clk 0:01:40]}  Nxd5 {[%clk 0:02:37]} 22. cxd5 {[%clk 0:01:38]}  Nb4 {[%clk 0:02:32]} 23. Qc4 {[%clk 0:01:33]}  b5 {[%clk 0:02:08]} 24. axb5 {[%clk 0:01:28]}  axb5 {[%clk 0:02:08]} 25. Qc1 {[%clk 0:01:19]}  Ba6 {[%clk 0:01:56]} 26. Nc3 {[%clk 0:01:13]}  c4 {[%clk 0:01:52]} 27. bxc4 {[%clk 0:01:07]}  bxc4 {[%clk 0:01:50]} 28. Qa3 {[%clk 0:00:55]}  Rb8 {[%clk 0:01:26]} 29. e5 {[%clk 0:00:48]}  dxe5 {[%clk 0:01:17]} 30. d6 {[%clk 0:00:48]}  Qd7 {[%clk 0:01:14]} 31. Ne4 {[%clk 0:00:44]}  exf4 {[%clk 0:00:53]} 32. Nc5 {[%clk 0:00:42]}  Qb5 {[%clk 0:00:53]} 33. d7 {[%clk 0:00:29]}  Red8 {[%clk 0:00:52]} 34. Nxa6 {[%clk 0:00:29]}  Qxa6 {[%clk 0:00:39]} 35. Qxa6 {[%clk 0:00:26]}  Nxa6 {[%clk 0:00:39]} 36. gxf4 {[%clk 0:00:25]}  c3 {[%clk 0:00:39]} 37. Re2 {[%clk 0:00:24]}  Nb4 {[%clk 0:00:36]} 38. Ba7 {[%clk 0:00:20]}  c2 {[%clk 0:00:32]} 39. Rxc2 {[%clk 0:00:19]}  Nxc2 {[%clk 0:00:22]} 40. Bxb8 {[%clk 0:00:19]}  Ne3 {[%clk 0:00:23]} 41. Rd3 {[%clk 0:00:18]}  Nxg2 {[%clk 0:00:13]} 42. Kxg2 {[%clk 0:00:19]}  Kf8 {[%clk 0:00:10]} 43. Bd6+ {[%clk 0:00:18]}  Kg8 {[%clk 0:00:09]} 44. Be7 {[%clk 0:00:18]} 1-0


[Site "https://www.chess.com"]

[Event "Titled Tuesday Blitz May 24 Late 2022"]
[White "Ronka, Erik"]
[Black "Karttunen, Mika"]
[WhiteFideId "505080"]
[BlackFideId "502081"]
[WhiteElo "2264"]
[BlackElo "2343"]
[Result "1-0"]
[Round "09"]
[TimeControl "180+1"]
[Date "2022.05.24"]
[WhiteClock "0:00:08"]
[BlackClock "0:00:06"]

1. e4 {[%clk 0:03:00]}  c5 {[%clk 0:02:59]} 2. Nf3 {[%clk 0:03:00]}  d6 {[%clk 0:03:00]} 3. d4 {[%clk 0:03:00]}  cxd4 {[%clk 0:03:00]} 4. Nxd4 {[%clk 0:03:01]}  Nf6 {[%clk 0:03:01]} 5. Nc3 {[%clk 0:03:02]}  a6 {[%clk 0:03:01]} 6. Be3 {[%clk 0:03:00]}  e5 {[%clk 0:03:01]} 7. Nb3 {[%clk 0:03:00]}  Be6 {[%clk 0:02:59]} 8. f3 {[%clk 0:03:00]}  Be7 {[%clk 0:02:59]} 9. Qd2 {[%clk 0:03:00]}  Nbd7 {[%clk 0:02:58]} 10. g4 {[%clk 0:02:58]}  O-O {[%clk 0:02:52]} 11. O-O-O {[%clk 0:02:58]}  b5 {[%clk 0:02:51]} 12. g5 {[%clk 0:02:58]}  Nh5 {[%clk 0:02:51]} 13. Rg1 {[%clk 0:02:58]}  Rc8 {[%clk 0:02:44]} 14. Kb1 {[%clk 0:02:45]}  Nb6 {[%clk 0:02:28]} 15. Na5 {[%clk 0:02:31]}  Qc7 {[%clk 0:02:20]} 16. Nd5 {[%clk 0:02:29]}  Bxd5 {[%clk 0:02:01]} 17. exd5 {[%clk 0:02:29]}  Nc4 {[%clk 0:02:01]} 18. Bxc4 {[%clk 0:02:18]}  bxc4 {[%clk 0:02:01]} 19. Nc6 {[%clk 0:02:19]}  Rfe8 {[%clk 0:01:58]} 20. Rg4 {[%clk 0:02:10]}  Bf8 {[%clk 0:01:46]} 21. Rxc4 {[%clk 0:02:09]}  Qd7 {[%clk 0:01:46]} 22. Qg2 {[%clk 0:01:52]}  g6 {[%clk 0:01:36]} 23. Qg4 {[%clk 0:01:45]}  f5 {[%clk 0:01:06]} 24. gxf6 {[%clk 0:01:05]}  Qxg4 {[%clk 0:01:05]} 25. fxg4 {[%clk 0:01:06]}  Nxf6 {[%clk 0:01:06]} 26. h3 {[%clk 0:01:05]}  Nd7 {[%clk 0:01:01]} 27. b4 {[%clk 0:00:58]}  Ra8 {[%clk 0:00:48]} 28. a3 {[%clk 0:00:58]}  Bg7 {[%clk 0:00:35]} 29. Kb2 {[%clk 0:00:54]}  Rf8 {[%clk 0:00:32]} 30. Na5 {[%clk 0:00:19]}  Rf3 {[%clk 0:00:32]} 31. Bd2 {[%clk 0:00:09]}  Rxh3 {[%clk 0:00:31]} 32. Rc7 {[%clk 0:00:09]}  Nf6 {[%clk 0:00:31]} 33. c4 {[%clk 0:00:09]}  Nxg4 {[%clk 0:00:29]} 34. c5 {[%clk 0:00:09]}  Nf2 {[%clk 0:00:29]} 35. Re1 {[%clk 0:00:08]}  Nd3+ {[%clk 0:00:29]} 36. Kc2 {[%clk 0:00:09]}  Nxe1+ {[%clk 0:00:29]} 37. Bxe1 {[%clk 0:00:09]}  dxc5 {[%clk 0:00:28]} 38. bxc5 {[%clk 0:00:10]}  Rxa3 {[%clk 0:00:28]} 39. Nc6 {[%clk 0:00:10]}  Bf8 {[%clk 0:00:27]} 40. d6 {[%clk 0:00:10]}  Ra4 {[%clk 0:00:18]} 41. Nxe5 {[%clk 0:00:09]}  Re4 {[%clk 0:00:17]} 42. Bc3 {[%clk 0:00:08]}  Bg7 {[%clk 0:00:16]} 43. d7 {[%clk 0:00:08]}  Bxe5 {[%clk 0:00:05]} 44. Rc8+ {[%clk 0:00:08]}  Kf7 {[%clk 0:00:06]} 45. d8=Q {[%clk 0:00:08]} 1-0


[Site "https://www.chess.com"]

[Event "Titled Tuesday Blitz May 24 Late 2022"]
[White "Sargsyan, Anna M."]
[Black "Zamorano, Jorge"]
[WhiteFideId "13308130"]
[BlackFideId "173770"]
[WhiteElo "2271"]
[BlackElo "2331"]
[Result "1/2-1/2"]
[Round "09"]
[TimeControl "180+1"]
[Date "2022.05.24"]
[WhiteClock "0:00:05"]
[BlackClock "0:00:03"]

1. d4 {[%clk 0:02:58]}  Nf6 {[%clk 0:02:59]} 2. c4 {[%clk 0:02:56]}  e6 {[%clk 0:02:58]} 3. Nf3 {[%clk 0:02:56]}  b6 {[%clk 0:02:58]} 4. g3 {[%clk 0:02:56]}  Ba6 {[%clk 0:02:50]} 5. Qc2 {[%clk 0:02:55]}  Bb4+ {[%clk 0:02:50]} 6. Nbd2 {[%clk 0:02:52]}  Bb7 {[%clk 0:02:49]} 7. Bg2 {[%clk 0:02:52]}  O-O {[%clk 0:02:49]} 8. O-O {[%clk 0:02:52]}  Bxd2 {[%clk 0:02:49]} 9. Bxd2 {[%clk 0:02:51]}  Be4 {[%clk 0:02:49]} 10. Qc1 {[%clk 0:02:48]}  d6 {[%clk 0:02:49]} 11. Rd1 {[%clk 0:02:48]}  Nbd7 {[%clk 0:02:50]} 12. Bh3 {[%clk 0:02:48]}  Bxf3 {[%clk 0:02:47]} 13. exf3 {[%clk 0:02:48]}  c6 {[%clk 0:02:17]} 14. Be3 {[%clk 0:02:31]}  d5 {[%clk 0:02:15]} 15. b3 {[%clk 0:02:31]}  Rc8 {[%clk 0:02:15]} 16. Qb2 {[%clk 0:02:28]}  Qe7 {[%clk 0:02:08]} 17. a4 {[%clk 0:02:24]}  a5 {[%clk 0:02:01]} 18. Rac1 {[%clk 0:02:16]}  Rfd8 {[%clk 0:02:00]} 19. Bd2 {[%clk 0:02:05]}  c5 {[%clk 0:01:32]} 20. Be3 {[%clk 0:01:33]}  cxd4 {[%clk 0:01:29]} 21. Bxd4 {[%clk 0:01:34]}  dxc4 {[%clk 0:01:29]} 22. bxc4 {[%clk 0:01:31]}  Rc6 {[%clk 0:00:31]} 23. f4 {[%clk 0:01:23]}  Rdc8 {[%clk 0:00:31]} 24. Qe2 {[%clk 0:01:15]}  Qb4 {[%clk 0:00:25]} 25. f5 {[%clk 0:01:10]}  e5 {[%clk 0:00:19]} 26. Bxe5 {[%clk 0:00:23]}  Re8 {[%clk 0:00:18]} 27. f4 {[%clk 0:00:23]}  Qc5+ {[%clk 0:00:14]} 28. Kh1 {[%clk 0:00:22]}  Nxe5 {[%clk 0:00:10]} 29. fxe5 {[%clk 0:00:22]}  Qxe5 {[%clk 0:00:11]} 30. Qxe5 {[%clk 0:00:19]}  Rxe5 {[%clk 0:00:12]} 31. Bg2 {[%clk 0:00:19]}  Rc8 {[%clk 0:00:11]} 32. Rd6 {[%clk 0:00:19]}  h5 {[%clk 0:00:03]} 33. Rxb6 {[%clk 0:00:19]}  Rec5 {[%clk 0:00:03]} 34. Rb5 {[%clk 0:00:17]}  Rxc4 {[%clk 0:00:03]} 35. Rxc4 {[%clk 0:00:04]}  Rxc4 {[%clk 0:00:04]} 36. h3 {[%clk 0:00:04]}  Rxa4 {[%clk 0:00:05]} 37. Rb8+ {[%clk 0:00:05]}  Kh7 {[%clk 0:00:04]} 38. Ra8 {[%clk 0:00:05]}  Ra3 {[%clk 0:00:04]} 39. Kh2 {[%clk 0:00:05]}  a4 {[%clk 0:00:05]} 40. Ra7 {[%clk 0:00:03]}  Kg8 {[%clk 0:00:04]} 41. Ra8+ {[%clk 0:00:04]}  Kh7 {[%clk 0:00:05]} 42. Ra7 {[%clk 0:00:04]}  Ra2 {[%clk 0:00:03]} 43. Rxf7 {[%clk 0:00:04]}  a3 {[%clk 0:00:03]} 44. Ra7 {[%clk 0:00:05]}  Ra1 {[%clk 0:00:02]} 45. g4 {[%clk 0:00:05]}  hxg4 {[%clk 0:00:02]} 46. hxg4 {[%clk 0:00:06]}  Nxg4+ {[%clk 0:00:03]} 47. Kg3 {[%clk 0:00:06]}  Nf6 {[%clk 0:00:03]} 48. Kh2 {[%clk 0:00:04]}  Kh6 {[%clk 0:00:03]} 49. Kg3 {[%clk 0:00:03]}  Nh5+ {[%clk 0:00:03]} 50. Kf2 {[%clk 0:00:03]}  Nf6 {[%clk 0:00:03]} 51. Bf3 {[%clk 0:00:02]}  Ra2+ {[%clk 0:00:03]} 52. Kg3 {[%clk 0:00:03]}  Ra1 {[%clk 0:00:03]} 53. Kg2 {[%clk 0:00:03]}  a2 {[%clk 0:00:03]} 54. Kh2 {[%clk 0:00:01]}  Kg5 {[%clk 0:00:03]} 55. Bg2 {[%clk 0:00:01]}  Kh6 {[%clk 0:00:02]} 56. Ra5 {[%clk 0:00:01]}  Ng4+ {[%clk 0:00:02]} 57. Kg3 {[%clk 0:00:01]}  Ne3 {[%clk 0:00:03]} 58. Bf3 {[%clk 0:00:02]}  Nc4 {[%clk 0:00:03]} 59. Ra4 {[%clk 0:00:01]}  Nd2 {[%clk 0:00:02]} 60. Bg2 {[%clk 0:00:01]}  Nb1 {[%clk 0:00:01]} 61. Ra5 {[%clk 0:00:01]}  Nc3 {[%clk 0:00:02]} 62. Ra3 {[%clk 0:00:02]}  Ne2+ {[%clk 0:00:02]} 63. Kf2 {[%clk 0:00:02]}  Nd4 {[%clk 0:00:03]} 64. Kg3 {[%clk 0:00:02]}  Nxf5+ {[%clk 0:00:03]} 65. Kh2 {[%clk 0:00:02]}  Nd4 {[%clk 0:00:04]} 66. Ra6+ {[%clk 0:00:03]}  g6 {[%clk 0:00:04]} 67. Bd5 {[%clk 0:00:03]}  Ne2 {[%clk 0:00:02]} 68. Rxa2 {[%clk 0:00:04]}  Rxa2 {[%clk 0:00:02]} 69. Bxa2 {[%clk 0:00:05]}  Nf4 {[%clk 0:00:03]} 70. Bb1 {[%clk 0:00:05]}  Kg5 {[%clk 0:00:03]} 71. Bxg6 {[%clk 0:00:05]} 1/2-1/2


[Site "https://www.chess.com"]

[Event "Titled Tuesday Blitz May 24 Late 2022"]
[White "Turutin, Alexander"]
[Black "Skliarov, Viktor"]
[WhiteFideId "4180623"]
[BlackFideId "14106736"]
[WhiteElo "2402"]
[BlackElo "2229"]
[Result "0-1"]
[Round "09"]
[TimeControl "180+1"]
[Date "2022.05.25"]
[WhiteClock "0:00:03"]
[BlackClock "0:00:08"]

1. e4 {[%clk 0:03:00]}  c5 {[%clk 0:02:59]} 2. Nf3 {[%clk 0:02:56]}  Nc6 {[%clk 0:02:59]} 3. Bb5 {[%clk 0:02:56]}  e6 {[%clk 0:02:59]} 4. Bxc6 {[%clk 0:02:56]}  bxc6 {[%clk 0:02:59]} 5. d3 {[%clk 0:02:57]}  Ne7 {[%clk 0:02:59]} 6. h4 {[%clk 0:02:54]}  h5 {[%clk 0:02:58]} 7. e5 {[%clk 0:02:53]}  f6 {[%clk 0:02:52]} 8. Qe2 {[%clk 0:02:52]}  fxe5 {[%clk 0:02:50]} 9. Nxe5 {[%clk 0:02:52]}  d6 {[%clk 0:02:50]} 10. Nc4 {[%clk 0:02:48]}  Nf5 {[%clk 0:02:49]} 11. Bg5 {[%clk 0:02:46]}  Be7 {[%clk 0:02:46]} 12. Bxe7 {[%clk 0:02:11]}  Qxe7 {[%clk 0:02:47]} 13. c3 {[%clk 0:02:11]}  e5 {[%clk 0:02:12]} 14. Nbd2 {[%clk 0:02:01]}  Be6 {[%clk 0:01:45]} 15. O-O-O {[%clk 0:01:57]}  O-O-O {[%clk 0:01:34]} 16. Nf3 {[%clk 0:01:55]}  Bd5 {[%clk 0:01:28]} 17. Kb1 {[%clk 0:00:57]}  e4 {[%clk 0:01:09]} 18. Ng5 {[%clk 0:00:32]}  Bxc4 {[%clk 0:00:23]} 19. dxc4 {[%clk 0:00:30]}  Rhe8 {[%clk 0:00:21]} 20. g3 {[%clk 0:00:30]}  g6 {[%clk 0:00:21]} 21. Rhe1 {[%clk 0:00:31]}  d5 {[%clk 0:00:20]} 22. cxd5 {[%clk 0:00:29]}  cxd5 {[%clk 0:00:21]} 23. Qa6+ {[%clk 0:00:29]}  Qb7 {[%clk 0:00:22]} 24. Qxg6 {[%clk 0:00:30]}  Nd6 {[%clk 0:00:19]} 25. Qxh5 {[%clk 0:00:30]}  Nc4 {[%clk 0:00:19]} 26. Qe2 {[%clk 0:00:27]}  Kb8 {[%clk 0:00:17]} 27. Ka1 {[%clk 0:00:26]}  Na5 {[%clk 0:00:15]} 28. h5 {[%clk 0:00:23]}  Rd6 {[%clk 0:00:15]} 29. Nxe4 {[%clk 0:00:19]}  Rxe4 {[%clk 0:00:14]} 30. Qf3 {[%clk 0:00:17]}  Rxe1 {[%clk 0:00:13]} 31. Rxe1 {[%clk 0:00:18]}  Rd8 {[%clk 0:00:12]} 32. Qf4+ {[%clk 0:00:18]}  Qc7 {[%clk 0:00:12]} 33. Qg5 {[%clk 0:00:17]}  d4 {[%clk 0:00:10]} 34. cxd4 {[%clk 0:00:14]}  Rxd4 {[%clk 0:00:10]} 35. h6 {[%clk 0:00:12]}  Nb3+ {[%clk 0:00:08]} 36. Kb1 {[%clk 0:00:07]}  Nd2+ {[%clk 0:00:09]} 37. Kc2 {[%clk 0:00:08]}  Qh7+ {[%clk 0:00:08]} 38. Kd1 {[%clk 0:00:03]}  Nf3+ {[%clk 0:00:08]} 39. Ke2 {[%clk 0:00:03]}  Qd3# {[%clk 0:00:08]} 0-1


[Site "https://www.chess.com"]

[Event "Titled Tuesday Blitz May 24 Late 2022"]
[White "Vasquez Schroeder, Rodrigo"]
[Black "Terry, Renato"]
[WhiteFideId "3400042"]
[BlackFideId "3803457"]
[WhiteElo "2567"]
[BlackElo "2577"]
[Result "0-1"]
[Round "09"]
[TimeControl "180+1"]
[Date "2022.05.24"]
[WhiteClock "0:00:10"]
[BlackClock "0:00:34"]

1. e4 {[%clk 0:03:00]}  g6 {[%clk 0:02:58]} 2. d4 {[%clk 0:03:00]}  Bg7 {[%clk 0:02:58]} 3. Nf3 {[%clk 0:03:00]}  d6 {[%clk 0:02:59]} 4. Bc4 {[%clk 0:03:00]}  Nf6 {[%clk 0:02:59]} 5. Qe2 {[%clk 0:03:00]}  O-O {[%clk 0:02:57]} 6. e5 {[%clk 0:03:00]}  dxe5 {[%clk 0:02:54]} 7. dxe5 {[%clk 0:03:01]}  Nd5 {[%clk 0:02:54]} 8. h3 {[%clk 0:03:00]}  c6 {[%clk 0:02:38]} 9. O-O {[%clk 0:02:58]}  b5 {[%clk 0:02:38]} 10. Bb3 {[%clk 0:02:54]}  a5 {[%clk 0:02:36]} 11. Rd1 {[%clk 0:02:53]}  e6 {[%clk 0:02:36]} 12. a4 {[%clk 0:02:34]}  b4 {[%clk 0:02:25]} 13. c4 {[%clk 0:02:28]}  bxc3 {[%clk 0:02:25]} 14. bxc3 {[%clk 0:02:28]}  Qc7 {[%clk 0:02:21]} 15. Ba3 {[%clk 0:02:25]}  Rd8 {[%clk 0:02:20]} 16. Bd6 {[%clk 0:02:22]}  Qa7 {[%clk 0:02:20]} 17. c4 {[%clk 0:02:17]}  Ne7 {[%clk 0:02:07]} 18. Nc3 {[%clk 0:02:05]}  Na6 {[%clk 0:02:03]} 19. Ne4 {[%clk 0:01:59]}  Nf5 {[%clk 0:02:03]} 20. Ba3 {[%clk 0:01:49]}  Bb7 {[%clk 0:01:58]} 21. Nd6 {[%clk 0:01:42]}  c5 {[%clk 0:01:51]} 22. Nb5 {[%clk 0:01:35]}  Qb6 {[%clk 0:01:50]} 23. Bb2 {[%clk 0:01:23]}  Nb4 {[%clk 0:01:44]} 24. Rxd8+ {[%clk 0:01:14]}  Rxd8 {[%clk 0:01:45]} 25. Rd1 {[%clk 0:01:14]}  h5 {[%clk 0:01:46]} 26. Bc3 {[%clk 0:01:05]}  Bf8 {[%clk 0:01:37]} 27. Ng5 {[%clk 0:00:58]}  Nd4 {[%clk 0:01:25]} 28. Bxd4 {[%clk 0:00:50]}  cxd4 {[%clk 0:01:26]} 29. Bc2 {[%clk 0:00:46]}  Qc5 {[%clk 0:01:04]} 30. Bxg6 {[%clk 0:00:42]}  fxg6 {[%clk 0:00:58]} 31. Nxe6 {[%clk 0:00:36]}  d3 {[%clk 0:00:58]} 32. Qf1 {[%clk 0:00:22]}  Qe7 {[%clk 0:00:49]} 33. Nxd8 {[%clk 0:00:21]}  Qxd8 {[%clk 0:00:50]} 34. Qe1 {[%clk 0:00:22]}  Qg5 {[%clk 0:00:48]} 35. g3 {[%clk 0:00:18]}  Qf5 {[%clk 0:00:47]} 36. Kh2 {[%clk 0:00:16]}  Qf3 {[%clk 0:00:46]} 37. Qf1 {[%clk 0:00:17]}  Bc5 {[%clk 0:00:39]} 38. Rd2 {[%clk 0:00:13]}  h4 {[%clk 0:00:36]} 39. Qg1 {[%clk 0:00:10]}  hxg3+ {[%clk 0:00:34]} 40. Qxg3 {[%clk 0:00:10]}  Qh1# {[%clk 0:00:34]} 0-1


[Site "https://www.chess.com"]